bitfinex-derivatives/quotes_SOLF0:USTF0_20250411
["timestamp","ask_amount","ask_price","bid_price","bid_amount"]
[1744364922047,8.4583,118.3,118.27,21.54704748]
[1744364922251,8.4583,118.3,118.28,12.96933572]
[1744364922544,8.4583,118.3,118.29,8.77428626]
[1744364922749,8.4583,118.3,118.29,12.96560426]
[1744364923552,8.52226184,118.31,118.29,8.77428626]
[1744364923753,8.52226184,118.31,118.28,8.51834135]
[1744364923953,8.52226184,118.31,118.29,8.7677445]
[1744364924154,8.458,118.3,118.28,8.51834135]
[1744364924349,8.458,118.3,118.29,8.76774449]
[1744364925857,8.52226184,118.31,118.29,8.76774449]
[1744364926154,8.52226184,118.31,118.28,8.51834135]
[1744364926351,8.52226184,118.31,118.29,8.76581293]
[1744364926559,8.52226184,118.31,118.28,8.51834135]
[1744364926856,8.52226184,118.31,118.29,8.76442307]
[1744364927155,8.52226184,118.31,118.28,8.51834135]
[1744364927349,8.52226184,118.31,118.29,8.76465437]
[1744364927549,8.52226184,118.31,118.28,8.51834135]
[1744364927855,8.4579,118.3,118.29,8.76427117]
[1744364928053,0.06466184,118.31,118.29,8.76427117]
[1744364928355,8.52246184,118.31,118.28,8.51834135]
[1744364928555,8.52246184,118.31,118.29,8.76111235]
[1744364928750,8.52246184,118.31,118.28,8.51834135]
[1744364928952,8.52246184,118.31,118.29,8.75952039]
[1744364929151,8.52246184,118.31,118.28,8.51834135]
[1744364929352,8.4579,118.3,118.29,8.75908557]
[1744364929758,13.45091047,118.31,118.28,0.05904135]
[1744364930054,13.38624863,118.29,118.28,0.05904135]
[1744364930257,47.16624863,118.29,118.28,0.05904135]
[1744364930558,55.62494863,118.29,118.28,0.05904135]
[1744364930757,55.62494863,118.29,118.24,8.4618]
[1744364930758,47.16624863,118.29,118.23,2.2885]
[1744364931054,47.16624863,118.29,118.24,12.72365324]
[1744364931257,8.4613,118.26,118.25,8.53426194]
[1744364931456,8.4613,118.26,118.25,12.72473136]
[1744364931656,8.462,118.25,118.22,8.4633]
[1744364931856,33.78,118.25,118.24,0.06070649]
[1744364932057,33.78,118.25,118.24,12.7923306]
[1744364932957,42.2415,118.25,118.24,12.7923306]
[1744364933254,42.2415,118.25,118.24,0.06070649]
[1744364933458,55.62774863,118.25,118.24,0.06070649]
[1744364935161,8.4633,118.23,118.2,8.4649]
[1744364935462,42.2633,118.23,118.21,12.74209954]
[1744364935660,42.2633,118.23,118.22,12.74209954]
[1744364936562,8.4637,118.22,118.21,0.06271532]
[1744364939959,33.8,118.23,118.21,0.06271532]
[1744364941564,42.2632,118.23,118.21,0.06271532]
[1744364942365,33.8,118.23,118.21,0.06271532]
[1744364942763,33.8,118.23,118.21,8.52701532]
[1744364943263,33.8,118.23,118.22,12.71908117]
[1744364943467,33.8,118.23,118.22,8.53071554]
[1744364943867,33.8,118.23,118.21,0.06271532]
[1744364944566,42.2631,118.23,118.21,0.06271532]
[1744364944962,47.18624863,118.23,118.21,0.06271532]
[1744364945364,17.04543305,118.22,118.21,0.06271532]
[1744364945572,8.58173305,118.22,118.15,2.1265]
[1744364945770,8.58173305,118.19,118.16,12.71247163]
[1744364946068,41.90173305,118.19,118.17,12.71247163]
[1744364946269,41.90173305,118.19,118.18,12.71247163]
[1744364947070,50.36793305,118.19,118.17,0.05583665]
[1744364947369,41.7862,118.19,118.17,0.05583665]
[1744364947669,33.32,118.19,118.17,0.05583665]
[1744364947967,41.7862,118.19,118.17,0.05583665]
[1744364948563,8.4665,118.18,118.17,0.05583665]
[1744364950172,46.73398502,118.19,118.17,0.05583665]
[1744364951272,8.4665,118.18,118.17,0.05583665]
[1744364952371,55.19998502,118.19,118.17,0.05583665]
[1744364952675,33.32,118.19,118.17,0.05583665]
[1744364953873,33.32,118.19,118.17,8.52263665]
[1744364955474,33.32,118.19,118.18,8.4665]
[1744364956483,46.73398502,118.19,118.06,161.91944677]
[1744364956773,13.41398502,118.17,118.1,4.5289]
[1744364956973,8.4695,118.14,118.11,21.14610803]
[1744364957175,33.32,118.16,118.12,12.67490803]
[1744364957374,33.32,118.16,118.11,8.4712]
[1744364957574,8.53063279,118.15,118.13,0.0298867]
[1744364957871,13.47551781,118.15,118.13,0.0298867]
[1744364958377,13.47551781,118.15,118.07,20.16495879]
[1744364958577,13.41398502,118.12,118.08,12.66847499]
[1744364958878,8.4726,118.1,118.07,8.4741]
[1744364959066,33.32,118.11,118.06,4.5289]
[1744364959272,33.32,118.11,118.07,12.67059042]
[1744364959471,0.06061996,118.1,118.06,4.5289]
[1744364959672,0.06061996,118.1,118.07,12.66261116]
[1744364959871,0.06061996,118.1,118.06,4.5289]
[1744364960073,0.06061996,118.1,118.07,12.66167354]
[1744364960272,0.06061996,118.1,118.08,8.4731]
[1744364961381,0.06061996,118.1,118.06,4.5289]
[1744364961876,0.06061996,118.1,118.09,8.473]
[1744364962282,0.06061996,118.1,118.06,4.5289]
[1744364962579,0.06061996,118.1,118.08,8.4733]
[1744364962880,0.06061996,118.1,118.06,4.5289]
[1744364963881,0.06061996,118.1,118.08,8.4733]
[1744364966587,0.06061996,118.1,118.06,4.5289]
[1744364967380,0.06061996,118.1,118.09,8.473]
[1744364969788,0.06061996,118.1,118.08,8.4734]
[1744364970083,0.06061996,118.1,118.06,4.5289]
[1744364970284,0.06061996,118.1,118.09,8.473]
[1744364971990,0.06061996,118.1,118.08,8.4733]
[1744364972392,0.06061996,118.1,118.06,4.5289]
[1744364972591,0.06061996,118.1,118.08,8.4731]
[1744364972889,0.06061996,118.1,118.06,4.5289]
[1744364973089,0.06061996,118.1,118.08,8.4731]
[1744364973386,0.06061996,118.1,118.06,13.12506145]
[1744364973790,8.59616145,118.09,118.06,4.5289]
[1744364973985,8.65678141,118.1,118.06,4.5289]
[1744364974186,8.59616145,118.08,118.0,16.9582]
[1744364974486,41.73616145,118.08,118.05,8.4752]
[1744364974788,41.67330011,118.08,118.05,8.4755]
[1744364974992,33.19960011,118.08,118.05,8.4755]
[1744364975185,33.19960011,118.08,118.04,8.59616145]
[1744364975484,33.19960011,118.08,118.02,20.00559343]
[1744364975691,33.19960011,118.08,118.03,12.63452129]
[1744364975987,33.19960011,118.08,118.07,8.4744]
[1744364976787,33.19960011,118.08,118.06,8.4747]
[1744364979902,33.19960011,118.08,118.02,53.14559343]
[1744364980195,33.19960011,118.08,118.03,12.65471456]
[1744364980499,33.19960011,118.08,118.04,12.65471456]
[1744364980695,41.67360011,118.08,118.05,21.13051456]
[1744364980893,41.67360011,118.08,118.05,8.4758]
[1744364981290,33.19960011,118.08,118.05,8.4758]
[1744364981488,33.19960011,118.08,118.06,8.475]
[1744364982297,33.19960011,118.08,118.02,53.14559343]
[1744364982298,41.67360011,118.08,118.05,8.4757]
[1744364984289,33.19960011,118.08,118.02,115.14559343]
[1744364984494,33.19960011,118.08,118.06,8.4751]
[1744364984900,33.19960011,118.08,118.02,115.14559343]
[1744364985089,33.19960011,118.08,118.03,12.6532409]
[1744364985395,33.19960011,118.08,118.07,8.4744]
[1744364985892,33.19960011,118.08,118.07,21.13029871]
[1744364987294,33.19960011,118.08,118.07,8.4744]
[1744364987594,33.19960011,118.08,118.07,21.13925344]
[1744364987788,33.19960011,118.08,118.07,8.4744]
[1744364988796,33.19960011,118.08,118.07,21.15360097]
[1744364989296,33.19960011,118.08,118.07,16.97825983]
[1744364989497,33.19960011,118.08,118.07,8.4744]
[1744364989998,33.19960011,118.08,118.06,8.4748]
[1744364990399,33.19960011,118.08,118.07,8.4744]
[1744364991398,33.19960011,118.08,118.07,16.99472494]
[1744364991600,33.19960011,118.08,118.07,8.4744]
[1744364991800,33.19960011,118.08,118.02,115.14559343]
[1744364992097,33.19960011,118.08,118.03,12.70470577]
[1744364992299,33.19960011,118.08,118.04,12.70470577]
[1744364992600,46.63619354,118.08,118.02,6.569]
[1744364992797,8.4748,118.07,118.03,21.1919151]
[1744364992997,8.4748,118.07,118.04,12.7153151]
[1744364993197,8.4748,118.07,118.02,6.569]
[1744364993496,8.4748,118.07,118.04,8.4762]
[1744364997504,8.60218521,118.06,118.04,8.4762]
[1744364998703,8.60218521,118.06,118.05,12.7357396]
[1744364999506,8.60218521,118.06,118.05,12.73780067]
[1744364999710,17.07698521,118.07,118.05,12.73780067]
[1744364999901,17.07698521,118.07,118.04,8.4762]
[1744365000202,17.07698521,118.07,118.05,12.73911067]
[1744365000404,8.60218521,118.06,118.04,8.4762]
[1744365000600,8.60218521,118.07,118.05,12.74935733]
[1744365000906,33.19960011,118.08,118.06,12.74877081]
[1744365001201,33.19960011,118.08,118.07,12.74877081]
[1744365001395,33.19960011,118.08,118.07,21.23134529]
[1744365003301,33.19960011,118.08,118.07,21.23818325]
[1744365005802,41.80178532,118.08,118.07,12.76378325]
[1744365006710,50.27548532,118.08,118.07,12.76378325]
[1744365006905,33.19960011,118.08,118.07,12.77648902]
[1744365007112,33.19960011,118.08,118.07,12.77622925]
[1744365008412,33.19960011,118.08,118.07,21.25062925]
[1744365009112,1.1e-07,118.08,118.07,21.25062925]
[1744365009316,1.1e-07,118.08,118.07,29.85281446]
[1744365009614,1.1e-07,118.08,118.07,36.45101446]
[1744365010314,8.60218521,118.14,118.12,8.4708]
[1744365010514,56.83008521,118.15,118.13,4.20712728]
[1744365010715,8.60218521,118.14,118.08,8.60218521]
[1744365010919,8.60218521,118.13,118.11,8.4712]
[1744365011219,48.2279,118.15,118.12,12.42573671]
[1744365011220,8.60218521,118.14,118.12,12.42573671]
[1744365011410,8.66277112,118.14,118.13,4.19471752]
[1744365011616,0.06058591,118.14,118.13,12.42000627]
[1744365012016,8.66277112,118.14,118.13,4.19471752]
[1744365013122,0.06058591,118.14,118.13,4.19471752]
[1744365014222,0.06058591,118.14,118.13,12.41475698]
[1744365014818,8.66277112,118.14,118.13,12.41475698]
[1744365015018,8.66277112,118.14,118.13,4.19471752]
[1744365015220,0.06058591,118.14,118.13,4.19471752]
[1744365017525,8.66277112,118.14,118.13,4.19471752]
[1744365017928,8.66277112,118.14,118.12,0.05896615]
[1744365018728,17.13237112,118.14,118.12,0.05896615]
[1744365019132,8.60218521,118.13,118.12,0.05896615]
[1744365019332,8.60218521,118.13,118.07,8.4741]
[1744365019529,8.60218521,118.11,118.08,12.39649979]
[1744365019829,8.4723,118.1,118.09,12.39649979]
[1744365020030,8.60218521,118.1,118.09,4.18610712]
[1744365020933,8.60218521,118.1,118.05,8.60218521]
[1744365021135,33.20037811,118.11,118.09,8.60218521]
[1744365021325,33.14,118.11,118.07,8.60218521]
[1744365021527,41.80286091,118.11,118.08,12.40463369]
[1744365021728,50.27456091,118.11,118.09,4.18885075]
[1744365022027,50.27456091,118.11,118.07,17.07628521]
[1744365022334,17.07458521,118.1,118.08,12.40321896]
[1744365022532,33.2006757,118.11,118.04,51.25003518]
[1744365022533,8.60218521,118.09,118.04,59.85222039]
[1744365022734,8.60218521,118.09,118.05,12.409327]
[1744365022935,33.20045716,118.08,118.06,12.409327]
[1744365023232,33.20045716,118.08,118.07,4.19042584]
[1744365023432,33.20045716,118.08,118.07,12.40427368]
[1744365025030,41.80264237,118.08,118.07,4.19042584]
[1744365025333,41.80264237,118.08,118.02,8.60218521]
[1744365025536,8.60218521,118.06,118.03,12.40786696]
[1744365025734,17.07768521,118.06,118.04,12.40786696]
[1744365025934,8.60218521,118.06,118.05,4.18992696]
[1744365026135,8.66561984,118.06,118.05,4.18992696]
[1744365026533,0.06343463,118.06,118.05,4.18992696]
[1744365027040,8.53853463,118.06,118.02,17.07988521]
[1744365027340,8.53853463,118.06,118.03,12.40648786]
[1744365027637,0.06343463,118.06,118.04,12.40648786]
[1744365027835,0.06343463,118.06,118.03,8.4771]
[1744365028032,0.06343463,118.06,118.04,12.40474322]
[1744365028231,0.06343463,118.06,118.05,4.18887031]
[1744365028431,0.06343463,118.06,118.05,4.18819377]
[1744365029536,0.06343463,118.06,118.03,8.4771]
[1744365029738,8.4759,118.05,118.04,12.39960673]
[1744365030035,0.06343463,118.06,118.04,4.18713652]
[1744365030230,0.06343463,118.06,118.05,4.18477116]
[1744365030433,0.06343463,118.06,118.03,8.60218521]
[1744365030633,0.06343463,118.06,118.04,4.18417578]
[1744365030833,0.06343463,118.06,118.03,17.07898521]
[1744365031032,0.06343463,118.06,118.04,4.18396183]
[1744365031237,0.06343463,118.06,118.03,17.07898521]
[1744365031433,0.06343463,118.06,118.04,4.1833529]
[1744365031633,8.66561984,118.06,118.01,74.94928521]
[1744365031937,8.66561984,118.06,118.02,12.39120103]
[1744365031938,41.74218521,118.05,118.02,12.39120103]
[1744365032131,41.74218521,118.05,118.01,8.60218521]
[1744365032331,33.14,118.05,118.02,20.99641566]
[1744365032631,0.05539112,118.04,118.03,20.868885]
[1744365036847,0.05539112,118.04,118.03,29.47107021]
[1744365040136,33.14,118.08,118.05,8.4758]
[1744365040734,33.14,118.08,118.06,12.66222048]
[1744365040945,33.14,118.08,118.07,4.18772048]
[1744365041344,33.14,118.08,118.07,12.66212048]
[1744365041547,33.14,118.08,118.07,4.18772048]
[1744365041939,33.14,118.08,118.07,12.39885671]
[1744365042243,33.14,118.08,118.07,20.87325671]
[1744365042450,0.05909183,118.09,118.07,21.00104192]
[1744365042641,0.05909183,118.09,118.08,12.39885671]
[1744365042845,0.05909183,118.09,118.08,20.87255671]
[1744365043950,0.05909183,118.09,118.08,20.87046366]
[1744365044551,0.05909183,118.09,118.08,29.47264887]
[1744365044949,0.05909183,118.09,118.08,20.87046366]
[1744365045751,0.05909183,118.09,118.08,29.47264887]
[1744365046353,0.05909183,118.09,118.08,20.87046366]
[1744365047558,0.05909183,118.09,118.08,4.18772048]
[1744365048454,8.66127704,118.09,118.06,0.05602508]
[1744365048654,8.66127704,118.09,118.07,4.18833066]
[1744365048857,8.66127704,118.09,118.06,0.05602508]
[1744365049057,33.14,118.08,118.06,0.05602508]
[1744365049259,50.21628521,118.08,118.06,0.05602508]
[1744365049554,41.6141,118.08,118.06,0.05602508]
[1744365049757,33.14,118.08,118.07,4.18978455]
[1744365051261,41.6137,118.08,118.07,4.18978455]
[1744365051954,50.21588521,118.08,118.07,4.18978455]
[1744365052158,8.4744,118.07,118.06,0.05602508]
[1744365053862,17.07658521,118.07,118.06,0.05602508]
[1744365056965,41.6141,118.08,118.06,0.05602508]
[1744365057161,50.21628521,118.08,118.06,0.05602508]
[1744365057466,41.74218521,118.08,118.06,0.05602508]
[1744365059366,8.4744,118.07,118.06,0.05602508]
[1744365059565,8.4744,118.07,118.06,12.47710431]
[1744365059867,50.21648521,118.08,118.06,12.47710524]
[1744365060065,50.21648521,118.08,118.06,0.05602508]
[1744365060262,33.14,118.08,118.07,4.19408531]
[1744365061473,41.6137,118.08,118.07,4.19408531]
[1744365061661,33.14,118.08,118.07,4.19408531]
[1744365062467,33.14,118.08,118.07,12.42990736]
[1744365063568,33.14,118.08,118.07,20.90430736]
[1744365067970,33.14,118.08,118.07,12.42990736]
[1744365069262,33.14,118.08,118.07,20.90430736]
[1744365070271,0.05909183,118.09,118.08,8.4737]
[1744365070469,0.05909183,118.09,118.08,20.90360736]
[1744365072875,33.12,118.11,118.1,8.4723]
[1744365073068,33.12,118.11,118.1,20.90220736]
[1744365074072,33.12,118.11,118.1,12.42990736]
[1744365074570,33.12,118.11,118.1,12.42120152]
[1744365075171,33.12,118.11,118.1,20.89350152]
[1744365076570,33.12,118.11,118.1,20.89074848]
[1744365078274,33.12,118.11,118.1,12.66638531]
[1744365078475,33.12,118.11,118.1,20.89126307]
[1744365078770,33.12,118.11,118.1,12.41896307]
[1744365079474,33.12,118.11,118.1,20.89126307]
[1744365079876,33.12,118.11,118.1,12.41896307]
[1744365081777,33.12,118.11,118.1,12.42156943]
[1744365084080,41.72218521,118.11,118.1,12.42156943]
[1744365084277,50.19368521,118.11,118.1,4.19436236]
[1744365084482,41.72218521,118.11,118.04,33.12]
[1744365084683,8.60218521,118.08,118.05,8.23472997]
[1744365084880,33.12,118.08,118.06,8.23472997]
[1744365085083,33.12,118.08,118.07,8.23472997]
[1744365085678,33.12,118.08,118.07,16.70912997]
[1744365086988,33.12,118.08,118.07,8.23472997]
[1744365087785,33.12,118.08,118.06,8.52778309]
[1744365087987,33.12,118.08,118.07,8.23507405]
[1744365088884,41.72218521,118.08,118.07,8.23507405]
[1744365089075,33.12,118.08,118.07,8.23507405]
[1744365093785,33.12,118.08,118.07,8.22871326]
[1744365095489,33.12,118.08,118.07,16.70311326]
[1744365095690,33.12,118.08,118.07,8.22871326]
[1744365096687,33.12,118.08,118.07,12.29486503]
[1744365097697,33.12,118.08,118.07,12.29871514]
[1744365098098,41.5937,118.08,118.07,12.29871514]
[1744365098298,50.19588521,118.08,118.07,4.06647552]
[1744365099300,50.19588521,118.08,118.07,0.58717552]
[1744365099505,50.18218521,118.08,118.0,11.69085879]
[1744365099701,8.60218521,118.02,118.01,8.24212839]
[1744365100004,50.18018521,118.02,118.0,11.69085879]
[1744365100199,33.1,118.02,118.0,11.69085879]
[1744365100393,41.70218521,118.02,118.0,11.69085879]
[1744365100590,41.76591664,118.02,118.0,11.69085879]
[1744365100899,8.4787,118.01,118.0,11.69085879]
[1744365101303,8.60218521,118.01,117.99,128.59944677]
[1744365101603,8.60218521,118.0,117.98,261.91049826]
[1744365101801,41.72218521,117.99,117.98,187.53864495]
[1744365101999,50.20238521,117.99,117.98,81.23321775]
[1744365102200,58.68238521,117.99,117.98,13.95723549]
[1744365102399,58.68238521,117.99,117.98,3.549e-05]
[1744365102400,729.74238521,117.99,117.98,3.549e-05]
[1744365102900,8.4816,117.97,117.96,274.24856994]
[1744365103100,17.08378521,117.97,117.96,232.97856994]
[1744365103300,17.08378521,117.97,117.95,350.72576393]
[1744365103301,17.08218521,117.97,117.92,34.84272091]
[1744365103603,8.60218521,117.93,117.92,34.84272091]
[1744365103805,41.72218521,117.93,117.92,34.84272091]
[1744365105006,33.12,117.93,117.92,34.84272091]
[1744365105205,33.12,117.93,117.92,43.32792091]
[1744365105902,33.12,117.93,117.92,34.84272091]
[1744365106110,41.72218521,117.93,117.92,34.84272091]
[1744365106404,177.81816036,117.93,117.88,8.60218521]
[1744365106609,144.69816036,117.93,117.92,17.08738521]
[1744365107113,153.30034557,117.93,117.89,8.60218521]
[1744365107612,0.0607633,117.92,117.9,8.4862]
[1744365108110,0.0607633,117.92,117.9,17.08828521]
[1744365109012,8.66294851,117.92,117.86,37.5968]
[1744365109206,8.66294851,117.92,117.88,8.60218521]
[1744365109405,8.5464633,117.92,117.88,8.60218521]
[1744365109601,8.5464633,117.92,117.88,17.08988521]
[1744365109807,33.14,117.91,117.88,17.08988521]
[1744365110107,33.14,117.91,117.88,8.4877]
[1744365110313,33.14,117.91,117.87,8.60218521]
[1744365110501,33.14,117.91,117.88,8.60218521]
[1744365110909,33.19782129,117.91,117.88,8.60218521]
[1744365111313,44.82911554,117.91,117.88,8.60218521]
[1744365112413,44.82911554,117.91,117.85,64.2016]
[1744365112414,61.91730075,117.91,117.87,8.60218521]
[1744365112607,61.91730075,117.91,117.86,8.60218521]
[1744365112807,61.91730075,117.91,117.85,64.2016]
[1744365112808,61.91730075,117.91,117.87,8.60218521]
[1744365113008,44.82911554,117.91,117.88,17.08998521]
[1744365113213,44.82911554,117.91,117.89,8.60218521]
[1744365113411,33.19782129,117.91,117.89,8.60218521]
[1744365113610,33.19782129,117.91,117.9,8.60218521]
[1744365114017,0.05782129,117.91,117.9,8.60218521]
[1744365114314,0.05782129,117.91,117.9,17.08878521]
[1744365114515,33.14,117.94,117.9,8.60218521]
[1744365114709,33.14,117.94,117.92,8.60218521]
[1744365114912,33.14,117.94,117.92,17.08698521]
[1744365115412,33.14,117.94,117.91,8.4856]
[1744365115613,33.14,117.94,117.9,13.46433534]
[1744365115814,33.19433458,117.94,117.91,0.05782129]
[1744365116016,33.19433458,117.94,117.92,8.4848]
[1744365116611,11.63129425,117.96,117.94,8.4834]
[1744365117009,11.63129425,117.96,117.94,13.46433534]
[1744365117409,1.17689425,117.96,117.94,46.60433534]
[1744365117616,1.17689425,117.96,117.95,8.483]
[1744365117807,1.24112564,117.96,117.95,8.483]
[1744365118014,0.06423139,117.96,117.95,8.483]
[1744365118411,76.51338275,118.0,117.95,8.483]
[1744365118720,76.51338275,118.0,117.96,21.94613534]
[1744365119616,0.06298889,117.99,117.97,0.06011652]
[1744365120119,8.54318889,117.99,117.97,0.06011652]
[1744365120322,0.06298889,117.99,117.97,0.06011652]
[1744365122609,0.06298889,117.99,117.98,8.4809]
[1744365122813,0.06298889,117.99,117.98,21.94523534]
[1744365123423,34.64,118.03,118.0,8.4794]
[1744365123618,34.64,118.03,118.0,21.94373534]
[1744365124726,34.70338621,118.03,118.0,22.00555832]
[1744365127623,34.70338621,118.03,118.01,8.4787]
[1744365129228,34.70338621,118.03,118.0,22.00535832]
[1744365129428,43.18068621,118.03,118.0,8.54102298]
[1744365129630,34.70338621,118.03,118.0,8.54102298]
[1744365129929,8.4786,118.02,118.0,0.06182298]
[1744365130130,34.70338621,118.03,118.0,0.06182298]
[1744365130429,43.18068621,118.03,118.0,8.54082298]
[1744365131229,34.70338621,118.03,118.0,8.54082298]
[1744365131829,43.18088621,118.03,118.0,8.54082298]
[1744365132728,43.18088621,118.03,118.0,0.06182298]
[1744365134028,43.18088621,118.03,118.0,8.54122298]
[1744365134531,34.70338621,118.03,118.01,8.4782]
[1744365134928,34.70338621,118.03,118.0,0.06182298]
[1744365134929,0.06338621,118.03,118.0,13.52615832]
[1744365135121,34.64,118.06,118.02,13.46433534]
[1744365135730,34.64,118.06,118.03,8.4771]
[1744365136035,34.64,118.06,118.02,13.46433534]
[1744365136229,0.05496893,118.05,118.04,8.4761]
[1744365136429,0.05496893,118.05,118.04,21.94043534]
[1744365137429,0.05496893,118.05,118.04,8.4761]
[1744365137629,0.05496893,118.05,118.03,8.53962761]
[1744365140328,0.05496893,118.05,118.04,8.4766]
[1744365140835,0.05496893,118.05,118.03,8.53952761]
[1744365141525,13.46433534,118.13,118.04,13.46433534]
[1744365141729,34.62,118.13,118.08,13.46433534]
[1744365142034,43.0904,118.13,118.1,8.4723]
[1744365142240,34.62,118.13,118.1,8.4723]
[1744365142431,34.62,118.13,118.1,21.93663534]
[1744365142631,34.62,118.13,118.11,8.4715]
[1744365142832,34.67602585,118.13,118.1,13.51999361]
[1744365143235,34.67602585,118.13,118.1,21.99169361]
[1744365143834,34.67602585,118.13,118.1,13.51999361]
[1744365144432,0.05602585,118.13,118.1,13.51999361]
[1744365144641,0.05602585,118.13,118.1,75.51999361]
[1744365145141,0.05602585,118.13,118.12,8.4708]
[1744365146428,172.10273572,118.17,118.13,8.4696]
[1744365147341,43.0875,118.17,118.13,8.4696]
[1744365147542,0.05658403,118.16,118.14,0.06039087]
[1744365147739,8.52458403,118.16,118.14,0.06039087]
[1744365149243,8.4687,118.15,118.14,0.06039087]
[1744365149447,0.05658403,118.16,118.14,0.06039087]
[1744365149945,8.52488403,118.16,118.14,0.06039087]
[1744365150246,0.05658403,118.16,118.14,0.06039087]
[1744365151444,8.52488403,118.16,118.14,0.06039087]
[1744365152844,0.05658403,118.16,118.14,0.06039087]
[1744365153547,8.52458403,118.16,118.14,0.06039087]
[1744365155146,0.05658403,118.16,118.14,0.06039087]
[1744365156445,13.46433534,118.15,118.08,4.4639]
[1744365156646,33.76,118.14,118.08,4.4639]
[1744365156845,33.76,118.14,118.08,38.2239]
[1744365157145,33.76,118.14,118.08,51.68823534]
[1744365157551,0.06435494,118.12,118.11,8.4712]
[1744365160553,8.4683,118.16,118.13,8.47]
[1744365161048,8.4683,118.16,118.1,13.46433534]
[1744365161250,8.4683,118.16,118.12,8.4703]
[1744365161753,0.05352637,118.15,118.13,0.0586552]
[1744365164655,0.05352637,118.15,118.13,8.5286552]
[1744365167352,0.05352637,118.15,118.14,8.4694]
[1744365167657,0.05352637,118.15,118.13,0.0586552]
[1744365168253,33.76,118.2,118.13,0.0586552]
[1744365168556,13.46433534,118.19,118.13,0.0586552]
[1744365169162,8.4685,118.16,118.13,0.0586552]
[1744365169355,42.40325468,118.17,118.13,0.0586552]
[1744365169651,8.469,118.15,118.12,8.58789857]
[1744365169857,8.469,118.15,118.14,0.06165451]
[1744365170059,33.81535611,118.17,118.14,8.64955308]
[1744365170456,42.28315611,118.17,118.14,8.64955308]
[1744365170656,42.28315611,118.17,118.14,0.06165451]
[1744365170852,33.81535611,118.17,118.14,0.06165451]
[1744365171054,8.4681,118.16,118.14,0.06165451]
[1744365172048,42.28295611,118.17,118.14,0.06165451]
[1744365172646,8.468,118.16,118.14,0.06165451]
[1744365172852,33.81535611,118.17,118.14,0.06165451]
[1744365173164,42.28315611,118.17,118.14,0.06165451]
[1744365173454,33.81535611,118.17,118.14,0.06165451]
[1744365174454,42.40325468,118.17,118.14,0.06165451]
[1744365175062,8.4687,118.15,118.14,0.06165451]
[1744365175562,33.81535611,118.17,118.14,0.06165451]
[1744365176261,42.28295611,118.17,118.14,8.53045451]
[1744365176765,33.81535611,118.17,118.15,8.4687]
[1744365176959,33.81535611,118.17,118.15,17.05659857]
[1744365177360,33.81535611,118.17,118.15,8.58789857]
[1744365180268,33.81535611,118.17,118.15,17.05599857]
[1744365180466,33.81535611,118.17,118.16,8.58789857]
[1744365180766,33.81535611,118.17,118.15,8.58789857]
[1744365181772,33.81535611,118.17,118.15,17.05649857]
[1744365182067,33.81535611,118.17,118.16,8.58789857]
[1744365183066,33.81535611,118.17,118.16,20.68985187]
[1744365183362,33.81535611,118.17,118.15,17.05649857]
[1744365183562,33.81535611,118.17,118.15,8.58789857]
[1744365184062,33.81535611,118.17,118.16,3.92196747]
[1744365184269,33.81535611,118.17,118.16,12.11734987]
[1744365189468,33.81535611,118.17,118.16,20.70524844]
[1744365189866,33.81535611,118.17,118.16,20.7416016]
[1744365190064,0.05535611,118.17,118.16,20.7416016]
[1744365190470,0.05535611,118.17,118.16,12.15370303]
[1744365190877,41.94325468,118.17,118.14,0.06165451]
[1744365191073,8.4687,118.15,118.14,0.06165451]
[1744365191475,8.4687,118.15,118.11,8.58789857]
[1744365191676,41.7694,118.14,118.11,17.05899857]
[1744365191878,33.3,118.14,118.11,8.58789857]
[1744365192581,33.3,118.14,118.11,17.05909857]
[1744365192877,33.36096582,118.14,118.11,17.12364556]
[1744365193079,33.36096582,118.14,118.11,8.65244556]
[1744365193976,41.83046582,118.14,118.11,8.65244556]
[1744365194578,41.83046582,118.14,118.11,17.12364556]
[1744365194879,33.36096582,118.14,118.11,8.65244556]
[1744365196281,33.36096582,118.14,118.12,8.4708]
[1744365197483,33.36096582,118.14,118.12,17.05869857]
[1744365197981,33.36096582,118.14,118.13,8.4701]
[1744365199283,33.36096582,118.14,118.12,17.05829857]
[1744365201385,33.36096582,118.14,118.13,8.4701]
[1744365202483,0.06096582,118.14,118.13,17.05799857]
[1744365202988,0.06096582,118.14,118.13,28.92069995]
[1744365203582,33.3,118.17,118.16,8.468]
[1744365203783,46.67640207,118.19,118.16,28.91859995]
[1744365203982,46.67640207,118.19,118.17,11.86270138]
[1744365204182,55.14220207,118.19,118.16,8.468]
[1744365204584,55.32231744,118.19,118.16,0.05818282]